bitfinex/quotes_BTCUSD_20241110
["timestamp","ask_amount","ask_price","bid_price","bid_amount"]
[1731280039735,0.33581186,80294.0,80293.0,0.000841]
[1731280040084,0.26548421,80294.0,80293.0,0.000841]
[1731280041402,0.39048421,80294.0,80293.0,0.000841]
[1731280045269,0.015,80289.0,80271.0,0.001408]
[1731280045477,0.262565,80279.0,80271.0,0.001408]
[1731280045671,0.36550721,80279.0,80271.0,0.001408]
[1731280046722,0.42717053,80279.0,80271.0,0.001408]
[1731280047031,0.45217053,80279.0,80271.0,0.001408]
[1731280047257,0.39050721,80279.0,80271.0,0.001408]
[1731280047466,0.38850721,80279.0,80271.0,0.001408]
[1731280047671,0.40203343,80279.0,80271.0,0.001408]
[1731280047871,0.40403343,80279.0,80271.0,0.001408]
[1731280048839,0.41220543,80279.0,80271.0,0.001408]
[1731280049067,0.41020543,80279.0,80271.0,0.001408]
[1731280049501,0.38720543,80279.0,80271.0,0.001408]
[1731280050038,0.38220543,80279.0,80271.0,0.001408]
[1731280050241,0.45253857,80279.0,80271.0,0.001408]
[1731280051047,0.45253857,80279.0,80275.0,0.0496]
[1731280051048,0.14764043,80279.0,80275.0,0.0496]
[1731280051258,0.27220543,80279.0,80275.0,0.0496]
[1731280051717,0.008172,80279.0,80275.0,0.174171]
[1731280051926,0.008172,80279.0,80278.0,0.43005284]
[1731280052164,0.124542,80294.0,80293.0,0.005]
[1731280052363,0.124541,80295.0,80294.0,0.13]
[1731280053095,0.124562,80281.0,80280.0,0.1229]
[1731280053298,0.25050421,80281.0,80280.0,0.1229]
[1731280053794,0.24909,80292.0,80280.0,0.1229]
[1731280053795,0.249097,80290.0,80280.0,0.1229]
[1731280053999,0.005,80303.0,80289.0,0.005]
[1731280054211,0.12454,80295.0,80294.0,0.005]
[1731280054418,0.56032931,80296.0,80295.0,0.005]
[1731280054628,0.12594221,80302.0,80293.0,0.005]
[1731280054845,0.124542,80294.0,80293.0,0.005]
[1731280055280,0.12594221,80302.0,80287.0,0.005]
[1731280055281,0.249092,80292.0,80287.0,0.005]
[1731280055472,0.249092,80292.0,80285.0,0.005]
[1731280055473,0.124545,80292.0,80291.0,0.005]
[1731280055680,0.124533,80300.0,80294.0,0.1231]
[1731280055890,0.24906,80302.0,80294.0,0.1231]
[1731280055891,0.124536,80299.0,80297.0,0.005]
[1731280056101,0.005,80311.0,80297.0,0.005]
[1731280056269,0.249041,80308.0,80297.0,0.005]
[1731280056500,0.00168,80325.0,80294.0,0.1231]
[1731280056501,0.249034,80311.0,80301.0,0.005]
[1731280056703,0.12594221,80310.0,80303.0,0.005]
[1731280057051,0.12594221,80310.0,80301.0,0.005]
[1731280057052,0.124522,80307.0,80306.0,0.005]
[1731280057588,0.124522,80307.0,80295.0,0.1]
[1731280057589,0.12594221,80307.0,80295.0,0.005]
[1731280057801,0.124539,80296.0,80295.0,0.005]
[1731280058001,0.124537,80297.0,80296.0,0.01]
[1731280058793,0.005,80317.0,80299.0,0.01]
[1731280058993,0.005,80317.0,80290.0,0.249096]
[1731280058994,0.124522,80307.0,80306.0,0.005]
[1731280059791,0.12594221,80314.0,80306.0,0.005]
[1731280060174,0.249025,80313.0,80306.0,0.005]
[1731280060377,0.124518,80310.0,80306.0,0.005]
[1731280060774,0.124515,80311.0,80306.0,0.005]
[1731280060967,0.124516,80311.0,80306.0,0.005]
[1731280061174,0.124519,80309.0,80306.0,0.005]
[1731280061369,0.124522,80307.0,80306.0,0.005]
[1731280061868,0.124529,80302.0,80301.0,0.00927096]
[1731280062073,0.12594221,80307.0,80306.0,0.005]
[1731280062381,0.25046421,80307.0,80306.0,0.005]
[1731280062540,0.005,80320.0,80306.0,0.005]
[1731280062541,0.24901,80318.0,80306.0,0.005]
[1731280062756,0.12594221,80317.0,80306.0,0.254047]
[1731280062958,0.124509,80315.0,80306.0,0.254047]
[1731280063191,0.249019,80315.0,80307.0,0.19171231]
[1731280063574,0.1245,80321.0,80307.0,0.005]
[1731280063790,0.124512,80313.0,80307.0,0.005]
[1731280063959,0.124507,80317.0,80310.0,0.124516]
[1731280064177,0.00168,80324.0,80319.0,0.124502]
[1731280064404,0.00168,80324.0,80309.0,0.372038]
[1731280064405,0.00168,80324.0,80323.0,0.124497]
[1731280064609,0.00168,80324.0,80323.0,0.0819]
[1731280064835,0.126175,80324.0,80323.0,0.0819]
[1731280065047,0.126175,80324.0,80323.0,0.0769]
[1731280065665,0.25211721,80324.0,80323.0,0.0769]
[1731280067007,0.00168,80324.0,80323.0,0.0769]
[1731280067200,0.126175,80324.0,80323.0,0.0769]
[1731280068035,0.00168,80324.0,80323.0,0.0769]
[1731280068238,0.00168,80324.0,80323.0,0.257497]
[1731280068498,0.00168,80324.0,80323.0,0.133]
[1731280072287,0.00168,80324.0,80323.0,0.257497]
[1731280072727,0.00168,80324.0,80323.0,0.133]
[1731280073585,0.00168,80324.0,80323.0,0.257497]
[1731280073846,0.00168,80324.0,80323.0,0.133]
[1731280073988,0.00168,80324.0,80323.0,0.257497]
[1731280075112,0.00168,80324.0,80323.0,0.357497]
[1731280075311,0.18671231,80342.0,80341.0,0.005]
[1731280075425,0.18671231,80342.0,80341.0,0.129469]
[1731280075632,0.124456,80350.0,80342.0,0.253935]
[1731280076067,0.13094221,80349.0,80341.0,0.1243]
[1731280076283,0.005,80348.0,80341.0,0.1243]
[1731280076511,0.124467,80342.0,80341.0,0.1243]
[1731280077185,0.124465,80344.0,80341.0,0.1293]
[1731280077559,0.2489,80354.0,80342.0,0.005]
[1731280077752,0.124466,80343.0,80342.0,0.005]
[1731280077933,0.124461,80347.0,80342.0,0.005]
[1731280078109,0.124461,80347.0,80341.0,0.248768]
[1731280078110,0.248914,80349.0,80341.0,0.248768]
[1731280078315,0.124465,80344.0,80341.0,0.1243]
[1731280078574,0.12446,80348.0,80342.0,0.005]
[1731280078922,0.18671231,80351.0,80342.0,0.005]
[1731280079128,0.248905,80352.0,80342.0,0.005]
[1731280079540,0.124459,80348.0,80342.0,0.005]
[1731280079768,0.124459,80348.0,80342.0,0.129467]
[1731280080105,0.12446,80347.0,80342.0,0.129467]
[1731280080715,0.248905,80352.0,80342.0,0.129467]
[1731280080716,0.248905,80352.0,80342.0,0.005]
[1731280080918,0.12762421,80354.0,80342.0,0.005]
[1731280080919,0.248914,80349.0,80342.0,0.005]
[1731280081131,0.124466,80343.0,80342.0,0.005]
[1731280081580,0.124466,80343.0,80341.0,0.1243]
[1731280081581,0.124467,80342.0,80341.0,0.1243]
[1731280081790,0.124467,80342.0,80323.0,0.348991]
[1731280081791,0.124483,80332.0,80331.0,0.0818]
[1731280081932,0.124477,80336.0,80332.0,0.005]
[1731280082134,0.124479,80335.0,80332.0,0.005]
[1731280082341,0.248945,80339.0,80332.0,0.005]
[1731280082543,0.12594221,80341.0,80332.0,0.005]
[1731280082807,0.12594221,80341.0,80331.0,0.0818]
[1731280082808,0.124483,80332.0,80331.0,0.0818]
[1731280083006,0.12594221,80341.0,80329.0,0.0527]
[1731280083007,0.13950818,80341.0,80329.0,0.0527]
[1731280083309,0.124481,80333.0,80332.0,0.005]
[1731280084049,0.124481,80333.0,80329.0,0.0527]
[1731280084345,0.124481,80333.0,80332.0,0.005]
[1731280084978,0.13950818,80341.0,80332.0,0.005]
[1731280085172,0.248945,80339.0,80332.0,0.005]
[1731280085414,0.124481,80334.0,80332.0,0.005]
[1731280085622,0.24895,80338.0,80332.0,0.005]
[1731280085826,0.124481,80334.0,80332.0,0.005]
[1731280086060,0.124478,80336.0,80332.0,0.005]
[1731280086266,0.13950818,80341.0,80332.0,0.005]
[1731280086473,0.124481,80333.0,80332.0,0.005]
[1731280086686,0.124486,80330.0,80329.0,0.0477]
[1731280086899,0.124495,80324.0,80319.0,0.005]
[1731280087761,0.12594221,80329.0,80319.0,0.005]
[1731280087970,0.01356597,80341.0,80319.0,0.005]
[1731280087971,0.253947,80339.0,80323.0,0.0868]
[1731280088179,0.248963,80333.0,80323.0,0.0868]
[1731280088378,0.12449,80328.0,80323.0,0.0868]
[1731280088553,0.248963,80333.0,80323.0,0.211296]
[1731280088759,0.124492,80326.0,80323.0,0.0868]
[1731280088932,0.12594221,80338.0,80323.0,0.0868]
[1731280089202,0.124495,80324.0,80323.0,0.0818]
[1731280089633,0.124505,80318.0,80317.0,0.0463]
[1731280089890,0.12594221,80318.0,80307.0,0.005]
[1731280090009,0.124519,80309.0,80308.0,0.18671231]
[1731280090584,0.124519,80309.0,80305.0,0.1274]
[1731280090585,0.124523,80306.0,80305.0,0.1274]
[1731280091399,0.124537,80297.0,80296.0,0.0777]
[1731280092029,0.124553,80287.0,80286.0,0.0777]
[1731280092448,0.124564,80280.0,80279.0,0.000841]
[1731280092642,0.25550621,80280.0,80279.0,0.000841]
[1731280092859,0.25050621,80280.0,80279.0,0.000841]
[1731280093685,0.35579163,80280.0,80279.0,0.000841]
[1731280093893,0.25550621,80280.0,80279.0,0.000841]
[1731280094104,0.28050621,80280.0,80279.0,0.000841]
[1731280094306,0.38050621,80280.0,80279.0,0.000841]
[1731280094515,0.37850621,80280.0,80279.0,0.000841]
[1731280096177,0.38050621,80280.0,80279.0,0.000841]
[1731280096801,0.50444842,80280.0,80279.0,0.000841]
[1731280097379,0.50644842,80280.0,80279.0,0.000841]
[1731280098419,0.50444842,80280.0,80279.0,0.000841]
[1731280100354,0.50644842,80280.0,80279.0,0.000841]
[1731280100998,0.38050621,80280.0,80279.0,0.000841]
[1731280101409,0.37850621,80280.0,80279.0,0.000841]
[1731280103700,0.38050621,80280.0,80279.0,0.000841]
[1731280105159,0.37850621,80280.0,80279.0,0.000841]
[1731280105335,0.38050621,80280.0,80279.0,0.000841]
[1731280105536,0.50644842,80280.0,80279.0,0.000841]
[1731280107018,0.38025063,80280.0,80279.0,0.000841]
[1731280107433,0.37825063,80280.0,80279.0,0.000841]
[1731280108204,0.38025063,80280.0,80279.0,0.000841]
[1731280109197,0.25025063,80280.0,80279.0,0.000841]
[1731280109398,0.25525063,80280.0,80279.0,0.000841]
[1731280110748,0.25025063,80280.0,80279.0,0.000841]
[1731280111157,0.33059869,80280.0,80279.0,0.000841]
[1731280111399,0.35525063,80280.0,80279.0,0.000841]
[1731280111870,0.35525063,80280.0,80265.0,0.00141]
[1731280111871,0.005,80272.0,80265.0,0.00141]
[1731280112078,0.39551364,80266.0,80265.0,0.00141]
[1731280112284,0.52145585,80266.0,80265.0,0.00141]
[1731280112513,0.60081814,80266.0,80265.0,0.00141]
[1731280112864,0.60281814,80266.0,80265.0,0.00141]
[1731280114815,0.53654761,80266.0,80265.0,0.00141]
[1731280115022,0.39361897,80266.0,80265.0,0.00141]
[1731280117387,0.39361897,80266.0,80265.0,0.04951]
[1731280117388,0.26361897,80266.0,80265.0,0.04951]
[1731280117623,0.26861897,80266.0,80265.0,0.04951]
[1731280118668,0.129612,80249.0,80248.0,0.0481]
[1731280118795,0.25055421,80249.0,80248.0,0.0481]
[1731280119217,0.25555421,80249.0,80248.0,0.1235]
[1731280119648,0.129619,80244.0,80243.0,0.00141]
[1731280119874,0.25556121,80244.0,80243.0,0.00141]
[1731280120328,0.28056121,80244.0,80243.0,0.00141]
[1731280120537,0.5951698,80244.0,80243.0,0.00141]
[1731280120769,0.71911201,80244.0,80243.0,0.00141]
[1731280120985,0.72111201,80244.0,80243.0,0.00141]
[1731280121722,0.46925459,80227.0,80226.0,0.000841]
[1731280121926,0.5951968,80227.0,80226.0,0.000841]
[1731280122123,0.5951968,80227.0,80213.0,0.00141]
[1731280122124,0.154661,80217.0,80213.0,0.00141]
[1731280122360,0.154661,80217.0,80216.0,0.01013485]
[1731280122361,0.28060321,80217.0,80216.0,0.01013485]
[1731280122557,0.28060321,80217.0,80216.0,0.01013494]
[1731280122761,0.131663,80216.0,80213.0,0.00141]
[1731280122959,0.38060521,80216.0,80213.0,0.00141]
[1731280123134,0.37860521,80216.0,80213.0,0.00141]
[1731280123332,0.38060521,80216.0,80213.0,0.00141]
[1731280123530,0.37860521,80216.0,80213.0,0.00141]
[1731280123763,0.38060521,80216.0,80213.0,0.00141]
[1731280126902,0.38034937,80216.0,80213.0,0.00141]
[1731280127714,0.27834937,80216.0,80213.0,0.00141]
[1731280127923,0.25034937,80216.0,80215.0,0.12481]
[1731280128247,0.12594221,80216.0,80215.0,0.12481]
[1731280128457,0.13094221,80216.0,80215.0,0.12481]
[1731280128669,0.13094221,80216.0,80184.0,0.00141]
[1731280128670,0.007,80185.0,80184.0,0.00141]
[1731280128814,0.25565321,80185.0,80184.0,0.00141]
[1731280129332,0.25065321,80185.0,80184.0,0.00141]
[1731280129531,0.2494,80193.0,80184.0,0.00141]
[1731280129532,0.005,80193.0,80185.0,0.0466]
[1731280129879,0.43735552,80192.0,80185.0,0.0466]
[1731280130197,0.12594221,80192.0,80185.0,0.0466]
[1731280130534,0.12594221,80192.0,80186.0,0.124709]
[1731280130735,0.25064221,80192.0,80185.0,0.0466]
[1731280131106,0.124702,80191.0,80185.0,0.0466]
[1731280131257,0.12594221,80190.0,80185.0,0.0466]
[1731280131877,0.12594221,80190.0,80189.0,0.124705]
[1731280132482,0.12594221,80190.0,80185.0,0.0466]
[1731280133011,0.12594221,80190.0,80186.0,0.124709]
[1731280133307,0.12594221,80190.0,80185.0,0.0466]
[1731280133887,0.25064521,80190.0,80185.0,0.0466]
[1731280134094,0.25064521,80190.0,80184.0,0.131122]
[1731280134095,0.005,80185.0,80184.0,0.00141]
[1731280134359,0.25565321,80185.0,80184.0,0.00141]
[1731280134737,0.25065321,80185.0,80184.0,0.00141]
[1731280135139,0.12594221,80185.0,80184.0,0.00141]
[1731280136104,0.27865321,80185.0,80184.0,0.00141]
[1731280136312,0.27365321,80185.0,80184.0,0.00141]
[1731280136524,0.28065321,80185.0,80184.0,0.00141]
[1731280136727,0.29363193,80185.0,80184.0,0.00141]
[1731280136934,0.29337612,80185.0,80184.0,0.00141]
[1731280139126,0.28837612,80185.0,80184.0,0.00141]
[1731280139519,0.29337612,80185.0,80184.0,0.00141]
[1731280139877,0.28837612,80185.0,80184.0,0.00141]
[1731280140084,0.29337612,80185.0,80184.0,0.00141]
[1731280141249,0.29137612,80185.0,80184.0,0.00141]
[1731280141458,0.1306864,80185.0,80184.0,0.00141]
[1731280141692,0.39870234,80185.0,80184.0,0.00141]
[1731280141956,0.48349707,80185.0,80184.0,0.00141]
[1731280142166,0.48549707,80185.0,80184.0,0.00141]
[1731280142366,0.39870234,80185.0,80184.0,0.00141]
[1731280142580,0.2553974,80185.0,80184.0,0.00141]
[1731280142725,0.3783974,80185.0,80184.0,0.00141]
[1731280143536,0.2783974,80185.0,80184.0,0.00141]
[1731280143746,0.2503974,80185.0,80184.0,0.00141]
[1731280143974,0.2553974,80185.0,80184.0,0.00141]
[1731280144554,0.2573974,80185.0,80184.0,0.00141]
[1731280144978,0.2553974,80185.0,80184.0,0.00141]
[1731280146923,0.2553974,80185.0,80184.0,0.12811]
[1731280148366,0.2570814,80185.0,80184.0,0.12811]
[1731280149822,0.2590814,80185.0,80184.0,0.12811]
[1731280151051,0.2570814,80185.0,80184.0,0.12811]
[1731280151261,0.2520814,80185.0,80184.0,0.12811]
[1731280151500,0.2570814,80185.0,80184.0,0.12811]
[1731280151705,0.2590814,80185.0,80184.0,0.12811]
[1731280151960,0.1273704,80185.0,80184.0,0.12811]
[1731280152172,0.001684,80185.0,80184.0,0.262823]
[1731280152395,0.001684,80185.0,80184.0,0.27592071]
[1731280152597,0.0061,80200.0,80190.0,0.005]
[1731280152833,0.12594221,80199.0,80192.0,0.076]
[1731280153019,0.12594221,80199.0,80198.0,0.174591]
[1731280153159,0.12594221,80199.0,80198.0,0.0499]
[1731280153947,0.12594221,80199.0,80198.0,0.174591]
[1731280154101,0.0011,80200.0,80199.0,0.124689]
[1731280154319,0.12704221,80200.0,80199.0,0.124689]
[1731280154858,0.12704221,80200.0,80198.0,0.17459]
[1731280155364,0.12704221,80200.0,80198.0,0.0499]
[1731280155588,0.12594221,80199.0,80198.0,0.0499]
[1731280155816,0.126699,80193.0,80192.0,0.076]
[1731280156061,0.25264121,80193.0,80192.0,0.076]
[1731280156267,0.12594221,80193.0,80192.0,0.076]
[1731280156439,0.25064121,80193.0,80192.0,0.076]
[1731280156652,0.12594221,80193.0,80192.0,0.076]
[1731280156819,0.12594221,80193.0,80192.0,0.2007]
[1731280157041,0.12568631,80193.0,80192.0,0.2007]
[1731280158045,0.25038531,80193.0,80192.0,0.076]
[1731280158267,0.12568631,80193.0,80192.0,0.076]
[1731280159312,0.25038531,80193.0,80192.0,0.076]
[1731280159893,0.12568631,80193.0,80192.0,0.2007]
[1731280160071,0.12568631,80193.0,80192.0,0.076]
[1731280160275,0.12568631,80193.0,80192.0,0.076842]
[1731280160598,0.12737031,80193.0,80192.0,0.076842]
[1731280160979,0.12737031,80193.0,80192.0,0.201542]
[1731280161180,0.25206931,80193.0,80192.0,0.076842]
[1731280162890,0.12737031,80193.0,80192.0,0.076842]
[1731280164609,0.12737031,80193.0,80192.0,0.15119788]
[1731280164790,0.001684,80193.0,80192.0,0.201542]
[1731280165116,0.001684,80193.0,80192.0,0.211542]
[1731280166189,0.25232521,80193.0,80192.0,0.000842]
[1731280166320,0.25232521,80193.0,80192.0,0.07526291]
[1731280166521,0.25232521,80193.0,80192.0,0.000842]
[1731280166924,0.25232521,80193.0,80192.0,0.07529915]
[1731280167413,0.25232521,80193.0,80192.0,0.000842]
[1731280167612,0.25232521,80193.0,80192.0,0.09386975]
[1731280168419,0.25232521,80193.0,80192.0,0.000842]
[1731280168618,0.25232521,80193.0,80192.0,0.09386975]
[1731280168822,0.25232521,80193.0,80192.0,0.000842]
[1731280169049,0.24998821,80193.0,80192.0,0.000842]
[1731280169277,0.24998821,80193.0,80192.0,0.07533321]
[1731280169445,0.24998821,80193.0,80192.0,0.000842]
[1731280169841,0.25198821,80193.0,80192.0,0.000842]
[1731280170043,0.24998821,80193.0,80192.0,0.000842]
[1731280172974,0.12528921,80193.0,80192.0,0.000842]
[1731280173153,0.249383,80198.0,80194.0,0.005]
[1731280173154,0.124692,80198.0,80194.0,0.005]
[1731280173374,0.0011,80200.0,80194.0,0.005]
[1731280173375,0.0011,80200.0,80194.0,0.129697]
[1731280173578,0.25063221,80199.0,80194.0,0.20418957]
[1731280173983,0.25063221,80199.0,80195.0,0.07449257]
[1731280174184,0.124694,80196.0,80195.0,0.07449257]
[1731280174392,0.12594221,80199.0,80194.0,0.07949257]
[1731280174597,0.124695,80196.0,80195.0,0.07449257]
[1731280175058,0.124695,80196.0,80194.0,0.09811571]
[1731280175282,0.124696,80195.0,80194.0,0.09815487]
[1731280175712,0.25063821,80195.0,80194.0,0.005]
[1731280175936,0.12594221,80195.0,80193.0,0.19682292]
[1731280176106,0.124697,80194.0,80193.0,0.19682292]
[1731280176514,0.124697,80194.0,80193.0,0.1223]
[1731280176903,0.25063921,80194.0,80193.0,0.1223]
[1731280177232,0.2523833,80194.0,80193.0,0.1223]
[1731280178146,0.2503833,80194.0,80193.0,0.1223]
[1731280179308,0.124699,80193.0,80192.0,0.000842]
[1731280179513,0.25064121,80193.0,80192.0,0.000842]
[1731280180227,0.25264121,80193.0,80192.0,0.000842]
[1731280181428,0.42194615,80193.0,80192.0,0.000842]
[1731280182676,0.42394615,80193.0,80192.0,0.000842]
[1731280183088,0.25264121,80193.0,80192.0,0.000842]
[1731280184222,0.26607397,80193.0,80192.0,0.000842]
[1731280184652,0.26775797,80193.0,80192.0,0.000842]
[1731280184795,0.14305897,80193.0,80192.0,0.000842]
[1731280185001,0.26775797,80193.0,80192.0,0.000842]
[1731280188680,0.001684,80193.0,80192.0,0.207042]
[1731280188889,0.001684,80193.0,80192.0,0.212042]
[1731280189683,0.001684,80193.0,80192.0,0.28661501]
[1731280189925,0.0011,80200.0,80199.0,0.134689]
[1731280190126,0.00022,80210.0,80209.0,0.1331]
[1731280190458,0.00022,80210.0,80209.0,0.357774]
[1731280190593,0.124646,80227.0,80209.0,0.357774]
[1731280190594,0.18671231,80219.0,80215.0,0.124664]
[1731280190791,0.18671231,80219.0,80215.0,0.34586894]
[1731280191205,0.18671231,80219.0,80215.0,0.0829]
[1731280191405,0.18671231,80219.0,80215.0,0.0879]
[1731280192088,0.249292,80227.0,80215.0,0.212564]
[1731280192313,0.12465,80225.0,80215.0,0.28708926]
[1731280192540,0.124651,80224.0,80215.0,0.212564]
[1731280192968,0.124654,80222.0,80215.0,0.212564]
[1731280193187,0.12466,80219.0,80215.0,0.0879]
[1731280193419,0.12466,80218.0,80215.0,0.0879]
[1731280193647,0.124657,80221.0,80215.0,0.0879]
[1731280193854,0.002,80225.0,80215.0,0.212564]
[1731280194064,0.249293,80227.0,80215.0,0.212564]
[1731280194272,0.124648,80226.0,80215.0,0.212564]
[1731280194509,0.249267,80236.0,80215.0,0.26405711]
[1731280194764,0.124639,80232.0,80215.0,0.261564]
[1731280195024,0.373951,80225.0,80215.0,0.261564]
[1731280195228,0.124652,80223.0,80215.0,0.261564]
[1731280195430,0.373951,80225.0,80215.0,0.261564]
[1731280195645,0.249284,80230.0,80215.0,0.261564]
[1731280195854,0.124652,80224.0,80215.0,0.261564]
[1731280196282,0.124642,80230.0,80215.0,0.261564]
[1731280196544,0.249267,80235.0,80215.0,0.261564]
[1731280196747,0.249267,80235.0,80215.0,0.33845416]
[1731280196968,0.249267,80235.0,80215.0,0.261564]
[1731280197187,0.249267,80235.0,80215.0,0.26405701]
[1731280197620,0.124638,80232.0,80215.0,0.33594034]
[1731280197832,0.18671231,80237.0,80215.0,0.261564]
[1731280198049,0.18671231,80237.0,80227.0,0.01]
[1731280198266,0.18671231,80237.0,80227.0,0.50445094]
[1731280198470,0.18671231,80237.0,80236.0,0.215132]
[1731280199129,5e-05,80250.0,80245.0,0.005]
[1731280199340,5e-05,80250.0,80249.0,0.134612]
[1731280199591,5e-05,80250.0,80249.0,0.210412]
[1731280200658,5e-05,80250.0,80249.0,0.0858]
[1731280201129,5e-05,80250.0,80249.0,0.210412]
[1731280202732,5e-05,80250.0,80249.0,0.21290386]
[1731280202935,0.000706,80274.0,80265.0,0.255987]
[1731280203134,0.18671231,80295.0,80279.0,0.134565]
[1731280203376,0.249097,80290.0,80279.0,0.01]
[1731280203558,0.249091,80292.0,80279.0,0.134565]
[1731280203793,0.249087,80294.0,80279.0,0.134565]
[1731280203983,0.31125331,80295.0,80279.0,0.134565]
[1731280204155,0.249089,80293.0,80279.0,0.134565]
[1731280204357,0.124546,80291.0,80279.0,0.134565]
[1731280204579,0.18671231,80295.0,80279.0,0.134565]
[1731280204827,0.124554,80287.0,80279.0,0.134565]
[1731280204946,0.12455,80289.0,80279.0,0.134565]
[1731280205151,0.124547,80291.0,80279.0,0.134565]
[1731280205575,0.249086,80294.0,80279.0,0.134565]
[1731280205792,0.124552,80288.0,80279.0,0.134565]
[1731280206029,0.124549,80290.0,80279.0,0.134565]
[1731280206476,0.12455,80289.0,80279.0,0.134565]
[1731280206696,0.124552,80288.0,80279.0,0.134565]
[1731280206904,0.124548,80290.0,80279.0,0.134565]
[1731280207592,0.124563,80281.0,80279.0,0.01]
[1731280207803,0.124551,80289.0,80279.0,0.134565]
[1731280208007,0.124558,80284.0,80279.0,0.01]
[1731280208179,0.12456,80283.0,80279.0,0.01]
[1731280208377,0.124561,80282.0,80279.0,0.01]
[1731280208736,0.18671231,80286.0,80279.0,0.01]
[1731280208932,0.249096,80291.0,80279.0,0.01]
[1731280209108,0.18671231,80286.0,80279.0,0.134565]
[1731280209516,0.249113,80285.0,80279.0,0.01]
[1731280209932,0.126246,80280.0,80279.0,0.01]
[1731280210567,0.001682,80280.0,80278.0,0.005]
[1731280210756,0.001682,80280.0,80279.0,0.005]
[1731280210757,0.126246,80280.0,80279.0,0.005]
[1731280210978,0.124565,80279.0,80278.0,0.01]
[1731280212061,0.001682,80280.0,80279.0,0.01]
[1731280212272,0.001682,80280.0,80279.0,0.134565]
[1731280212471,0.249782,80297.0,80294.0,0.01]
[1731280212825,0.249782,80297.0,80294.0,0.212342]
[1731280212826,0.00821352,80295.0,80294.0,0.212342]
[1731280213034,0.00821352,80295.0,80294.0,0.26043258]
[1731280213252,0.18671231,80305.0,80299.0,0.01]
[1731280213457,0.18671231,80305.0,80299.0,0.27783894]
[1731280213673,0.0082874,80300.0,80299.0,0.27783894]
[1731280213855,0.124583,80300.0,80299.0,0.01]
[1731280214315,0.1328204,80300.0,80299.0,0.01]
[1731280214520,0.25876261,80300.0,80299.0,0.005]
[1731280215153,0.1328204,80300.0,80299.0,0.01]
[1731280215737,0.1328204,80300.0,80299.0,0.005]
[1731280215962,0.1328204,80300.0,80299.0,0.01]
[1731280216273,0.124534,80299.0,80298.0,0.005]
[1731280216666,0.12840854,80299.0,80298.0,0.01]
[1731280217915,0.13290963,80299.0,80298.0,0.01]
[1731280219250,0.00837563,80299.0,80298.0,0.01]
[1731280219502,5e-05,80300.0,80298.0,0.01]
[1731280219703,5e-05,80300.0,80299.0,0.134534]
[1731280220565,5e-05,80300.0,80299.0,0.01]
[1731280220769,0.124583,80300.0,80299.0,0.01]
[1731280220975,0.12846064,80300.0,80299.0,0.01]
[1731280221189,0.12846064,80300.0,80298.0,0.049779]
[1731280221190,0.126534,80299.0,80298.0,0.049779]
[1731280221436,0.25247621,80299.0,80298.0,0.049779]
[1731280221648,0.126536,80298.0,80297.0,0.000841]
[1731280221808,0.28047821,80298.0,80297.0,0.000841]
[1731280222049,0.27804347,80298.0,80297.0,0.000841]
[1731280222168,0.25504347,80298.0,80297.0,0.000841]
[1731280222387,0.25047821,80298.0,80297.0,0.000841]
[1731280223293,0.25047821,80298.0,80297.0,0.005841]
[1731280226056,0.25247821,80298.0,80297.0,0.005841]
[1731280226843,0.25247821,80298.0,80297.0,0.000841]
[1731280227047,0.32941216,80298.0,80297.0,0.000841]
[1731280227290,0.38047821,80298.0,80297.0,0.000841]
[1731280227532,0.35047821,80298.0,80297.0,0.000841]
[1731280227691,0.25047821,80298.0,80297.0,0.000841]
[1731280227879,0.0008,80299.0,80298.0,0.005]
[1731280228075,0.0008,80299.0,80298.0,0.134536]
[1731280228275,0.125334,80299.0,80298.0,0.01]
[1731280228535,0.0008,80299.0,80298.0,0.01]
[1731280229138,0.125334,80299.0,80298.0,0.01]
[1731280230338,0.0008,80299.0,80298.0,0.01]
[1731280230553,0.0008,80299.0,80298.0,0.134536]
[1731280231316,0.0008,80299.0,80298.0,0.01]
[1731280231860,0.002482,80299.0,80298.0,0.01]
[1731280232070,0.00890215,80299.0,80298.0,0.134536]
[1731280232282,0.002482,80299.0,80298.0,0.01]
[1731280232483,0.00890343,80299.0,80298.0,0.01]
[1731280233375,0.13343743,80299.0,80298.0,0.01]
[1731280233935,0.00890343,80299.0,80298.0,0.01]
[1731280235205,0.13343743,80299.0,80298.0,0.01]
[1731280236292,0.25937964,80299.0,80298.0,0.005]
[1731280236978,0.124536,80298.0,80297.0,0.005841]
[1731280237180,0.25247821,80298.0,80297.0,0.005841]
[1731280237406,0.25890064,80298.0,80297.0,0.005841]
[1731280238099,0.002551,80298.0,80297.0,0.005841]
[1731280238319,0.249048,80306.0,80297.0,0.005841]
[1731280238320,0.18671231,80326.0,80324.0,0.129495]
[1731280238544,0.18671231,80326.0,80324.0,0.382495]
[1731280238982,0.18671231,80326.0,80324.0,0.380495]
[1731280239226,0.18671231,80335.0,80324.0,0.380495]
[1731280239227,0.18671231,80335.0,80324.0,0.50643721]
[1731280240615,0.18671231,80335.0,80330.0,0.139486]
[1731280240825,0.18671231,80344.0,80342.0,0.124467]
[1731280241027,0.18671231,80344.0,80342.0,0.131467]
[1731280241287,0.18671231,80344.0,80342.0,0.139467]
[1731280241487,0.31116331,80353.0,80342.0,0.139467]
[1731280241700,0.18671231,80353.0,80342.0,0.139467]
[1731280241927,0.31116431,80353.0,80342.0,0.139467]
[1731280242098,0.18671231,80353.0,80342.0,0.139467]
[1731280242304,0.124452,80352.0,80342.0,0.139467]
[1731280242504,0.18671231,80353.0,80342.0,0.139467]
[1731280243474,0.124444,80358.0,80342.0,0.141956]
[1731280243683,0.248858,80367.0,80342.0,0.141956]